fUST/lending_fUST_20250818
["ID","MTS","AMOUNT","RATE_DAILY","PERIOD"]
[379958599,1755449441414,-160.0,0.00023,2]
[379958600,1755449441426,-297.71267092,0.00023013,2]
[379958601,1755449441437,-607.23,0.00023013,2]
[379958602,1755449441446,-615.01762099,0.00023013,2]
[379958603,1755449441455,-534.43,0.00023013,2]
[379958604,1755449441464,-160.0,0.00023043,3]
[379958605,1755449441473,-160.0,0.00023043,5]
[379958606,1755449441482,-501.93147384,0.00023068,2]
[379958607,1755449441494,-607.23,0.00023287,2]
[379958608,1755449441505,-534.43,0.00023287,2]
[379958609,1755449441516,-253.8394,0.00023288,2]
[379958610,1755449441526,-19985.84,0.000233,7]
[379958611,1755449441535,-215.71995163,0.000233,7]
[379958612,1755449441544,-500.0,0.00023333,2]
[379958613,1755449441553,-3107.04257593,0.0002335,2]
[379958614,1755449441562,-293.7943279,0.00023357,2]
[379958615,1755449441571,-660.0,0.00023381,2]
[379958616,1755449441581,-12682.46447135,0.000234,7]
[379958617,1755449441590,-33479.92,0.000234,2]
[379958618,1755449441599,-375.77065697,0.000234,7]
[379958619,1755449441609,-417.15472785,0.000234,7]
[379958620,1755449441618,-9678.62651899,0.00023423,2]
[379958621,1755449441627,-746.87386143,0.00023475,2]
[379958622,1755449441636,-5731.82,0.000235,7]
[379958623,1755449441646,-614.12,0.00023557,2]
[379958624,1755449441655,-607.23,0.00023561,2]
[379958625,1755449441664,-534.43,0.00023561,2]
[379958626,1755449441673,-397.0,0.0002361,8]
[379958627,1755449441682,-864.0,0.00023668,20]
[379958628,1755449441691,-607.23,0.00023835,2]
[379958629,1755449441700,-534.43,0.00023835,2]
[379958630,1755449441710,-1518.7130567,0.000239,2]
[379958631,1755449441723,-9678.62651899,0.00023926,2]
[379958632,1755449441732,-760.0,0.00023929,2]
[379958633,1755449441741,-500.0,0.00023986,2]
[379958635,1755449441750,-160.0,0.00024,7]
[379958637,1755449441759,-160.0,0.00024,10]
[379958639,1755449441768,-160.0,0.00024,7]
[379958641,1755449441777,-160.0,0.00024,7]
[379958646,1755449441811,-160.0,0.00024,10]
[379958648,1755449441820,-528.48506731,0.00024,7]
[379958649,1755449441829,-528.48506731,0.00024,10]
[379958651,1755449441838,-216.83204348,0.00024,7]
[379958653,1755449441847,-216.83204348,0.00024,10]
[379958655,1755449441856,-215.71995163,0.00024,3]
[379958657,1755449441865,-160.0,0.00024,7]
[379958659,1755449441874,-160.0,0.00024,10]
[379958661,1755449441883,-843.71309931,0.00024,7]
[379958663,1755449441892,-843.71309931,0.00024,10]
[379958665,1755449441901,-232.1512529,0.00024,7]
[379958667,1755449441910,-232.1512529,0.00024,10]
[379958669,1755449441919,-607.23,0.00024109,2]
[379958671,1755449441928,-534.43,0.00024109,2]
[379958673,1755449441937,-500.0,0.00024279,2]
[379958675,1755449441947,-500.0,0.00024279,2]
[379958677,1755449441957,-607.23,0.00024383,2]
[379958679,1755449441966,-534.43,0.00024383,2]
[379958681,1755449441975,-9678.62651899,0.00024429,2]
[379958683,1755449441984,-155.2,0.00024446,7]
[379958685,1755449441993,-166.15,0.00024446,7]
[379958687,1755449442003,-155.21,0.00024448,7]
[379958689,1755449442012,-166.15,0.00024448,7]
[379958691,1755449442021,-207.25,0.00024448,7]
[379958692,1755449442029,-860.0,0.00024477,2]
[379958694,1755449442039,-151.0,0.00024494,5]
[379958696,1755449442048,-500.0,0.000245,2]
[379958699,1755449442061,-151.0,0.000245,10]
[379958700,1755449442070,-736.94,0.000245,2]
[379958702,1755449442080,-155.2,0.00024546,7]
[379958704,1755449442089,-166.16586478,0.00024546,7]
[379958706,1755449442098,-207.25,0.00024548,7]
[379958708,1755449442107,-155.2,0.0002457,7]
[379958710,1755449442116,-259.67777709,0.00024574,2]
[379958712,1755449442125,-224.69,0.00024594,2]
[379958714,1755449442135,-972.0,0.00024596,2]
[379958716,1755449442144,-637.0,0.00024596,2]
[379958718,1755449442153,-2153.0,0.00024596,2]
[379958720,1755449442162,-33479.92,0.000246,2]
[379958722,1755449442171,-155.2,0.00024646,7]
[379958724,1755449442181,-207.25,0.00024648,7]
[379958726,1755449442190,-607.23,0.00024657,2]
[379958728,1755449442199,-534.43,0.00024657,2]
[379958730,1755449442208,-380.0,0.00024658,2]
[379958732,1755449442217,-200.0,0.00024658,15]
[379958733,1755449442226,-155.2,0.0002467,7]
[379958735,1755449442235,-19985.84,0.000247,7]
[379958737,1755449442244,-12682.46447135,0.000247,7]
[379958739,1755449442253,-746.87386143,0.000247,2]
[379958741,1755449442262,-216.83204348,0.000247,7]
[379958743,1755449442272,-215.71995163,0.000247,7]
[379958745,1755449442281,-843.71309931,0.000247,7]
[379958747,1755449442290,-232.1512529,0.000247,7]
[379958749,1755449442299,-207.25,0.00024748,7]
[379958751,1755449442308,-155.2,0.0002477,7]
[379958753,1755449442317,-158.60123121,0.00024773,2]
[379958755,1755449442327,-1000.0,0.000248,2]
[379958757,1755449442336,-1000.0,0.000248,2]
[379958759,1755449442345,-1000.0,0.000248,2]
[379958761,1755449442355,-1000.0,0.000248,2]
[379958763,1755449442364,-1000.0,0.000248,2]
[379958765,1755449442373,-1000.0,0.000248,2]
[379958767,1755449442382,-375.77065697,0.000248,7]
[379958769,1755449442391,-417.15472785,0.000248,7]
[379958771,1755449442400,-67500.3786809,0.000248,2]
[379958773,1755449442409,-2798.81625265,0.000248,2]
[379958775,1755449442418,-823.0,0.00024812,2]
[379958777,1755449442428,-500.0,0.00024827,2]
[379958779,1755449442437,-1000.0,0.00024827,2]
[379958781,1755449442446,-5053.73275463,0.00024833,2]
[379958783,1755449442456,-207.25,0.00024848,7]
[379958785,1755449442466,-155.2,0.0002487,7]
[379958787,1755449442475,-150.0,0.00024873,2]
[379958789,1755449442484,-500.0,0.00024873,2]
[379958791,1755449442494,-500.0,0.00024873,2]
[379958793,1755449442503,-500.0,0.00024873,2]
[379958795,1755449442512,-500.0,0.00024873,2]
[379958797,1755449442521,-150.0,0.00024873,2]
[379958799,1755449442531,-500.0,0.00024873,2]
[379958800,1755449442540,-500.0,0.00024873,2]
[379958802,1755449442549,-500.0,0.00024873,2]
[379958804,1755449442559,-3552.65150952,0.0002488,2]
[379958806,1755449442569,-5731.82,0.000249,7]
[379958808,1755449442578,-834711.351039,0.000249,2]
[379958810,1755449442588,-607.23,0.00024931,2]
[379958812,1755449442597,-534.43,0.00024931,2]
[379958814,1755449442607,-502.0,0.00024932,2]
[379958816,1755449442616,-500.0,0.00024932,2]
[379958818,1755449442627,-9678.62651899,0.00024933,2]
[379958820,1755449442636,-441.0,0.00024934,2]
[379958822,1755449442646,-441.0,0.00024937,2]
[379958824,1755449442656,-207.25,0.00024948,7]
[379958827,1755449442665,-155.2,0.0002497,7]
[379958830,1755449442674,-826.9855662,0.00024988,2]
[379958833,1755449442683,-160.0,0.00025,10]
[379958835,1755449442692,-250.0,0.00025,7]
[379958837,1755449442701,-203.811104,0.00025,2]
[379958839,1755449442710,-960.0,0.00025025,2]
[379958841,1755449442721,-186.0,0.00025028,10]
[379958844,1755449442731,-207.25,0.00025048,7]
[379958846,1755449442740,-155.2,0.0002507,7]
[379958848,1755449442750,-500.0,0.00025082,2]
[379958850,1755449442759,-5053.73275463,0.00025084,2]
[379958852,1755449442768,-151.0,0.0002512,6]
[379958854,1755449442780,-207.25,0.00025148,7]
[379958856,1755449442789,-155.2,0.0002517,7]
[379958858,1755449442800,-441.0,0.00025176,2]
[379958860,1755449442809,-607.23,0.00025205,2]
[379958862,1755449442818,-534.43,0.00025205,2]
[379958865,1755449442827,-502.0,0.00025206,2]
[379958868,1755449442836,-500.0,0.00025206,2]
[379958870,1755449442845,-207.25,0.00025248,7]
[379958872,1755449442854,-155.2,0.0002527,7]
[379958874,1755449442863,-5053.73275463,0.00025334,2]
[379958876,1755449442871,-207.25,0.00025348,7]
[379958877,1755449442882,-155.2,0.0002537,7]
[379958879,1755449442891,-1500.0,0.00025375,2]
[379958881,1755449442900,-250.0,0.00025421,2]
[379958883,1755449442909,-1000.0,0.00025421,2]
[379958885,1755449442919,-300.0,0.00025421,2]
[379958887,1755449442928,-9678.62651899,0.00025436,3]
[379958889,1755449442937,-859.76,0.00025442,2]
[379958891,1755449442946,-207.25,0.00025448,7]
[379958893,1755449442955,-155.2,0.0002547,7]
[379958895,1755449442965,-441.0,0.0002547,2]
[379958897,1755449442974,-607.34476896,0.00025479,2]
[379958899,1755449442984,-534.56437086,0.00025479,2]
[379958901,1755449442993,-502.0,0.0002548,2]
[379958903,1755449443002,-500.0,0.0002548,2]
[379958905,1755449443011,-12682.46447135,0.000255,3]
[379958907,1755449443020,-207.25,0.00025548,7]
[379958909,1755449443029,-155.2,0.0002557,7]
[379958911,1755449443038,-450.0,0.0002557,2]
[379958913,1755449443047,-1060.0,0.00025573,2]
[379958915,1755449443056,-5053.73275463,0.00025585,2]
[379958917,1755449443064,-33479.92,0.000256,2]
[379958919,1755449443074,-869.9342161,0.00025615,2]
[379958921,1755449443083,-207.25,0.00025648,7]
[379958922,1755449443092,-441.0,0.00025654,2]
[379958924,1755449443101,-155.2,0.0002567,7]
[379958926,1755449443110,-151.0,0.00025747,6]
[379958928,1755449443119,-207.25,0.00025748,7]
[379958930,1755449443129,-502.0,0.00025754,2]
[379958932,1755449443139,-500.0,0.00025754,2]
[379958934,1755449443148,-441.0,0.00025767,2]
[379958936,1755449443157,-155.2,0.0002577,7]
[379958938,1755449443166,-19985.84,0.000258,7]
[379958940,1755449443175,-5053.73275463,0.00025835,2]
[379958942,1755449443184,-207.25,0.00025848,7]
[379958944,1755449443193,-155.2,0.0002587,7]
[379958946,1755449443203,-2000.0,0.00025923,2]
[379958948,1755449443211,-9678.62651899,0.00025939,4]
[379958950,1755449443221,-4000.0,0.00025947,4]
[379958951,1755449443230,-207.25,0.00025948,7]
[379958953,1755449443239,-441.0,0.00025952,2]
[379958955,1755449443249,-350.0,0.00025968,2]
[379958957,1755449443258,-440.72262656,0.00025968,2]
[379958959,1755449443267,-450.0,0.00025968,2]
[379958961,1755449443276,-155.2,0.0002597,7]
[379958963,1755449443285,-496.19133972,0.00025988,7]
[379958965,1755449443295,-441.0,0.00025994,2]
[379958967,1755449443304,-441.0,0.00025996,2]
[379958969,1755449443314,-160.0,0.00026,30]
[379958971,1755449443323,-160.0,0.00026,3]
[379958973,1755449443333,-375.77065697,0.00026,3]
[379958975,1755449443343,-417.15472785,0.00026,3]
[379958978,1755449443352,-160.0,0.00026,3]
[379958980,1755449443362,-528.48506731,0.00026,3]
[379958982,1755449443371,-216.83204348,0.00026,3]
[379958984,1755449443382,-215.71995163,0.00026,3]
[379958986,1755449443391,-160.0,0.00026,3]
[379958988,1755449443400,-160.0,0.00026,3]
[379958990,1755449443410,-843.71309931,0.00026,3]
[379958992,1755449443420,-232.1512529,0.00026,3]
[379958994,1755449443429,-502.0,0.00026028,2]
[379958996,1755449443439,-500.0,0.00026028,2]
[379958998,1755449443449,-1000.0,0.00026035,20]
[379959000,1755449443458,-207.25,0.00026048,7]
[379959002,1755449443468,-150.0,0.0002606,2]
[379959004,1755449443478,-155.29331807,0.0002607,7]
[379959006,1755449443487,-4359.58464228,0.00026086,2]
[379959016,1755449443565,-694.14811235,0.00026086,2]
[379959018,1755449443574,-162.87,0.000261,7]
[379959020,1755449443583,-1491.77481042,0.000261,7]
[379959022,1755449443595,-4240.04518958,0.000261,7]
[379959024,1755449443604,-1160.0,0.00026121,2]
[379959026,1755449443613,-207.25,0.00026148,7]
[379959028,1755449443622,-500.0,0.00026178,2]
[379959030,1755449443634,-218.93217274,0.00026189,2]
[379959032,1755449443643,-207.25,0.00026248,7]
[379959034,1755449443652,-441.0,0.0002629,2]
[379959036,1755449443661,-441.0,0.00026301,2]
[379959038,1755449443670,-502.0,0.00026302,2]
[379959040,1755449443679,-500.0,0.00026302,2]
[379959042,1755449443689,-412.0500368,0.00026336,2]
[379959051,1755449443772,-500.0,0.00019174,2]
[379959053,1755449443781,-480.0,0.00019452,2]
[379959055,1755449443792,-500.0,0.00019722,2]
[379959057,1755449443801,-495.0,0.0002027,2]
[379959059,1755449443812,-5.0,0.0002027,2]
[379959061,1755449443821,-500.0,0.00020818,2]
[379959063,1755449443831,-353.22375535,0.00021366,2]
[379959065,1755449443840,-4641.68271783,0.00026336,2]
[379959067,1755449443850,-207.25,0.00026348,7]
[379959069,1755449443859,-450.0,0.00026359,7]
[379959071,1755449443868,-151.0,0.00026373,7]
[379959073,1755449443880,-982.58,0.00026384,2]
[379959075,1755449443889,-9678.62651899,0.00026443,5]
[379959077,1755449443898,-207.25,0.00026448,7]
[379959079,1755449443908,-441.0,0.00026466,2]
[379959081,1755449443917,-2500.0,0.00026471,2]
[379959083,1755449443927,-800.0,0.00026508,2]
[379959085,1755449443936,-435.21755169,0.00026516,2]
[379959087,1755449443945,-600.0,0.00026516,2]
[379959089,1755449443954,-441.0,0.00026544,2]
[379959091,1755449443963,-95.62338741,0.00026548,7]
[379959093,1755449443974,-111.62661259,0.00026548,7]
[379959095,1755449443984,-863.9729156,0.00026556,2]
[379959097,1755449443993,-502.0,0.00026576,2]
[379959099,1755449444002,-500.0,0.00026576,2]
[379959101,1755449444011,-5053.73275463,0.00026587,2]
[379959103,1755449444020,-33479.92,0.000266,2]
[379959105,1755449444030,-188.94134954,0.00026608,2]
[379959107,1755449444039,-207.25,0.00026648,7]
[379959109,1755449444048,-1326.4230856,0.00026669,2]
[379959111,1755449444057,-500.329022,0.00026676,2]
[379959112,1755449444066,-441.0,0.00026686,2]
[379959113,1755449444075,-441.0,0.00026712,2]
[379959114,1755449444084,-253.8394,0.00026712,2]
[379959115,1755449444093,-800.0,0.0002673,2]
[379959116,1755449444103,-207.25,0.00026748,7]
[379959117,1755449444112,-499.3,0.00026773,2]
[379959119,1755449444121,-1000.0,0.00026774,2]
[379959121,1755449444134,-1500.0,0.0002679,2]
[379959123,1755449444144,-151.903182,0.000268,3]
[379959125,1755449444153,-1500.0,0.00026809,2]
[379959126,1755449444162,-500.0,0.00026811,2]
[379959127,1755449444172,-500.0,0.00026828,2]
[379959128,1755449444181,-5053.73275463,0.00026837,2]
[379959130,1755449444190,-207.25,0.00026848,7]
[379959132,1755449444200,-502.0,0.0002685,2]
[379959134,1755449444210,-500.0,0.0002685,2]
[379959136,1755449444219,-500.0,0.00026858,2]
[379959138,1755449444228,-500.0,0.00026873,2]
[379959140,1755449444237,-441.0,0.00026882,2]
[379959142,1755449444247,-500.0,0.00026887,2]
[379959144,1755449444256,-19985.84,0.000269,7]
[379959146,1755449444265,-3107.04257593,0.000269,2]
[379959148,1755449444275,-441.0,0.00026905,2]
[379959150,1755449444284,-806.69285324,0.00026925,2]
[379959152,1755449444293,-1000.0,0.00026934,2]
[379959154,1755449444302,-500.0,0.00026939,2]
[379959156,1755449444311,-1000.0,0.00026943,2]
[379959158,1755449444320,-1514.6316385,0.00026944,18]
[379959160,1755449444329,-9678.62651899,0.00026946,6]
[379959162,1755449444338,-207.25,0.00026948,7]
[379959164,1755449444348,-1000.0,0.00026959,2]
[379959166,1755449444357,-1000.0,0.00026972,2]
[379959168,1755449444366,-4392.0,0.00026994,2]
[379959170,1755449444377,-4392.0,0.00026996,2]
[379959172,1755449444386,-4392.0,0.00026998,2]
[379959174,1755449444396,-1012.857979,0.00027,30]
[379959344,1755449446279,-800.955369,0.00024477,2]
[379961511,1755449537147,459.160662,0.00013699,2]
[379961515,1755449778782,35072.6549,0.00017,2]
[379961516,1755449794902,706.013295,0.00027397,120]
[379961517,1755449926061,1000.0,0.00018076,2]
[379961522,1755450161953,196.0272652,0.00018076,2]
[379961524,1755450194397,2797.3212732,0.00018075,2]
[379961563,1755450429118,-481.24080212,0.0001859,2]
[379961564,1755450429142,-156.57,0.00019068,3]
[379961565,1755450429167,-469.75,0.00019068,3]
[379961566,1755450429191,-101.46327938,0.00019072,2]
[379961580,1755450629040,471.137337,0.00013699,2]
[379961644,1755450636219,-561.01946318,0.0001849,2]
[379961645,1755450636274,-1909.04832893,0.0001849,2]
[379961646,1755450636284,-1012.47537114,0.000189,2]
[379961647,1755450636293,-208.50940106,0.00019067,2]
[379961648,1755450636305,-91.49059894,0.00019067,2]
[379961649,1755450636314,-1200.0,0.00019067,2]
[379961650,1755450636324,-780.16,0.00019068,3]
[379961651,1755450636333,-390.08,0.00019068,3]
[379961652,1755450636343,-420.91,0.00019068,3]
[379961653,1755450636352,-210.45,0.00019068,3]
[379961655,1755450636361,-210.45,0.00019068,3]
[379961656,1755450636371,-332.73525713,0.00019072,2]
[379961657,1755450636380,-500.0,0.00019072,2]
[379961658,1755450636389,-564.72743089,0.00019072,2]
[379961659,1755450636399,-535.6578593,0.00019072,2]
[379961660,1755450636408,-574.89915425,0.00019072,2]
[379961661,1755450636417,-500.0,0.00019072,2]
[379961662,1755450636428,-500.0,0.00019072,2]
[379961663,1755450636438,-500.0,0.00019072,2]
[379961664,1755450636447,-500.0,0.00019072,2]
[379961665,1755450636457,-500.0,0.00019072,2]
[379961666,1755450636467,-789.0,0.00019072,2]
[379961667,1755450636476,-500.0,0.00019073,2]
[379961668,1755450636486,-500.0,0.00019073,2]
[379961669,1755450636495,-500.0,0.00019073,2]
[379961670,1755450636504,-501.07153285,0.00019073,2]
[379961671,1755450636514,-12225.15348804,0.00019073,2]
[379961672,1755450636525,-466.53666222,0.00019073,2]
[379961673,1755450636541,-37308.30984974,0.00019073,2]
[379961674,1755450636550,-500.0,0.00019073,2]
[379961675,1755450636560,-500.0,0.00019073,2]
[379961676,1755450636570,-500.0,0.00019073,2]
[379961677,1755450636579,-508.6606461,0.00019077,2]
[379961678,1755450636588,-924.53095387,0.00019078,2]
[379961679,1755450636596,-4142.72343458,0.00019078,2]
[379961680,1755450636606,-39831.16123689,0.00019078,2]
[379961748,1755450638428,-204927.7352427,0.00019078,2]
[379961749,1755450638438,-456.38556634,0.00019178,2]
[379961750,1755450638447,-402.35472963,0.00019178,2]
[379961751,1755450638457,-480.0,0.00019178,2]
[379961752,1755450638466,-480.0,0.00019178,2]
[379961753,1755450638476,-429.78604463,0.00019178,2]
[379961754,1755450638485,-480.0,0.00019178,2]
[379961755,1755450638495,-480.0,0.00019178,2]
[379961756,1755450638504,-480.0,0.00019178,2]
[379961757,1755450638514,-480.0,0.00019178,2]
[379961758,1755450638523,-480.0,0.00019178,2]
[379961759,1755450638532,-480.0,0.00019178,2]
[379961760,1755450638542,-480.0,0.00019178,2]
[379961761,1755450638551,-480.0,0.00019178,2]
[379961762,1755450638560,-480.0,0.00019178,2]
[379961763,1755450638569,-480.0,0.00019178,2]
[379961764,1755450638578,-480.0,0.00019178,2]
[379961765,1755450638587,-480.0,0.00019178,2]
[379961766,1755450638597,-480.0,0.00019178,2]
[379961767,1755450638607,-480.0,0.00019178,2]
[379961768,1755450638616,-480.0,0.00019178,2]
[379961769,1755450638625,-480.0,0.00019178,2]
[379961770,1755450638635,-480.0,0.00019178,2]
[379961771,1755450638644,-413.77504946,0.00019178,2]
[379961772,1755450638653,-480.0,0.00019178,2]
[379961773,1755450638662,-480.0,0.00019178,2]
[379961774,1755450638671,-480.0,0.00019178,2]
[379961775,1755450638681,-480.0,0.00019178,2]
[379961776,1755450638690,-1037.09,0.00019178,2]
[379961777,1755450638700,-480.0,0.00019178,2]
[379961778,1755450638710,-480.0,0.00019178,2]
[379961779,1755450638719,-169.99034147,0.00019178,2]
[379961780,1755450638729,-480.0,0.00019178,2]
[379961781,1755450638738,-480.0,0.00019178,2]
[379961782,1755450638748,-480.0,0.00019178,2]
[379961783,1755450638757,-480.0,0.00019178,2]
[379961784,1755450638766,-480.0,0.00019178,2]
[379961785,1755450638775,-480.0,0.00019178,2]
[379961786,1755450638785,-588.15,0.00019178,2]
[379961787,1755450638794,-480.0,0.00019178,2]
[379961788,1755450638803,-480.0,0.00019178,2]
[379961789,1755450638812,-295.782101,0.00019178,2]
[379961790,1755450638821,-480.0,0.00019178,2]
[379961791,1755450638830,-480.0,0.00019178,2]
[379961792,1755450638840,-480.0,0.00019178,2]
[379961793,1755450638849,-226.74,0.00019178,2]
[379961794,1755450638859,-480.0,0.00019178,2]
[379961795,1755450638868,-480.0,0.00019178,2]
[379961796,1755450638878,-480.0,0.00019178,2]
[379961797,1755450638887,-400.0,0.00019178,2]
[379961798,1755450638896,-480.0,0.00019178,2]
[379961799,1755450638905,-480.0,0.00019178,2]
[379961800,1755450638914,-483.6704916,0.00019178,2]
[379961802,1755450638924,-480.0,0.00019178,2]
[379961804,1755450638933,-480.0,0.00019178,2]
[379961806,1755450638943,-480.0,0.00019178,2]
[379961808,1755450638952,-497.89862058,0.00019178,2]
[379961810,1755450638961,-480.0,0.00019178,2]
[379961812,1755450638970,-480.0,0.00019178,2]
[379961814,1755450638980,-509.45951943,0.00019178,2]
[379961816,1755450638989,-480.0,0.00019178,2]
[379961818,1755450638998,-591.93975049,0.00019178,2]
[379961820,1755450639012,-480.0,0.00019178,2]
[379961822,1755450639021,-480.0,0.00019178,2]
[379961824,1755450639030,-480.0,0.00019178,2]
[379961826,1755450639040,-480.0,0.00019178,2]
[379961828,1755450639050,-480.0,0.00019178,2]
[379961830,1755450639060,-197.41,0.00019178,2]
[379961832,1755450639069,-480.0,0.00019178,2]
[379961833,1755450639079,-480.0,0.00019178,2]
[379961835,1755450639089,-480.0,0.00019178,2]
[379961837,1755450639098,-741.01,0.00019178,2]
[379961839,1755450639107,-480.0,0.00019178,2]
[379961841,1755450639117,-480.0,0.00019178,2]
[379961843,1755450639126,-480.0,0.00019178,2]
[379961845,1755450639136,-480.0,0.00019178,2]
[379961847,1755450639145,-480.0,0.00019178,2]
[379961849,1755450639154,-480.0,0.00019178,2]
[379961851,1755450639164,-480.0,0.00019178,2]
[379961853,1755450639173,-480.0,0.00019178,2]
[379961855,1755450639182,-480.0,0.00019178,2]
[379961857,1755450639192,-480.0,0.00019178,2]
[379961859,1755450639201,-480.0,0.00019178,2]
[379961861,1755450639211,-480.0,0.00019178,2]
[379961863,1755450639222,-480.0,0.00019178,2]
[379961865,1755450639231,-480.0,0.00019178,2]
[379961867,1755450639240,-480.0,0.00019178,2]
[379961869,1755450639250,-480.0,0.00019178,2]
[379961871,1755450639260,-226.11280198,0.00019178,2]
[379961873,1755450639269,-460.0,0.00019178,2]
[379961875,1755450639279,-480.0,0.00019178,2]
[379961877,1755450639288,-480.0,0.00019178,2]
[379961879,1755450639297,-500.0,0.00019178,2]
[379961881,1755450639307,-1050.2517789,0.0001919,2]
[379961883,1755450639316,-480.0,0.00019452,2]
[379961885,1755450639326,-480.0,0.00019452,2]
[379961887,1755450639336,-480.0,0.00019452,2]
[379961889,1755450639346,-378.92277035,0.00019452,2]
[379961891,1755450639356,-612.42808477,0.00019452,2]
[379961893,1755450639365,-1037.09,0.00019452,2]
[379961895,1755450639375,-480.0,0.00019452,2]
[379961897,1755450639384,-480.0,0.00019452,2]
[379961899,1755450639393,-480.0,0.00019452,2]
[379961901,1755450639402,-480.0,0.00019452,2]
[379961903,1755450639412,-480.0,0.00019452,2]
[379961905,1755450639422,-480.0,0.00019452,2]
[379961907,1755450639431,-480.0,0.00019452,2]
[379961909,1755450639441,-480.0,0.00019452,2]
[379961911,1755450639450,-480.0,0.00019452,2]
[379961913,1755450639459,-480.0,0.00019452,2]
[379961915,1755450639468,-480.0,0.00019452,2]
[379961917,1755450639478,-480.0,0.00019452,2]
[379961919,1755450639487,-480.0,0.00019452,2]
[379961921,1755450639496,-480.0,0.00019452,2]
[379961923,1755450639505,-741.01,0.00019452,2]
[379961925,1755450639514,-480.0,0.00019452,2]
[379961927,1755450639524,-480.0,0.00019452,2]
[379961929,1755450639533,-480.0,0.00019452,2]
[379961931,1755450639542,-480.0,0.00019452,2]
[379961933,1755450639551,-480.0,0.00019452,2]
[379961935,1755450639561,-480.0,0.00019452,2]
[379961937,1755450639570,-480.0,0.00019452,2]
[379961939,1755450639580,-310.13,0.00019452,2]
[379961941,1755450639589,-480.0,0.00019452,2]
[379961943,1755450639597,-638.93328612,0.00019452,2]
[379961945,1755450639608,-200.0,0.00019551,20]
[379961947,1755450639617,-200.0,0.00019551,20]
[379961949,1755450639627,-200.0,0.00019551,20]
[379961951,1755450639637,-200.0,0.00019551,20]
[379961953,1755450639647,-200.0,0.00019551,20]
[379961955,1755450639657,-200.0,0.00019551,20]
[379961957,1755450639667,-200.0,0.00019551,20]
[379961959,1755450639676,-200.0,0.00019551,20]
[379961961,1755450639686,-200.0,0.00019551,20]
[379961963,1755450639696,-200.0,0.00019551,20]
[379961965,1755450639706,-600.0,0.00019551,20]
[379961967,1755450639715,-197.5264365,0.00019621,2]
[379961969,1755450639725,-925.24473047,0.00019621,2]
[379961971,1755450639735,-150.0,0.00019717,2]
[379961973,1755450639746,-432.72,0.00019726,2]
[379961975,1755450639755,-480.0,0.00019726,2]
[379961977,1755450639765,-1037.09,0.00019726,2]
[379961979,1755450639775,-480.0,0.00019726,2]
[379961981,1755450639784,-480.0,0.00019726,2]
[379961983,1755450639794,-480.0,0.00019726,2]
[379961985,1755450639804,-480.0,0.00019726,2]
[379961987,1755450639814,-380.76436017,0.00019726,2]
[379961989,1755450639823,-480.0,0.00019726,2]
[379961991,1755450639832,-480.0,0.00019726,2]
[379961993,1755450639842,-356.1158523,0.00019726,2]
[379961995,1755450639852,-480.0,0.00019726,2]